bitfinex/quotes_ETHUSD_20260106
["timestamp","ask_amount","ask_price","bid_price","bid_amount"]
[1767703296091,3.09160483,3234.6,3234.0,0.92196219]
[1767703296398,0.001,3234.2,3234.0,0.92196219]
[1767703300205,3.90150825,3234.7,3234.2,0.9282517]
[1767703300412,0.28947993,3234.6,3234.2,0.9282517]
[1767703300622,0.28947993,3234.5,3234.2,0.9282517]
[1767703300911,0.28947993,3234.4,3234.2,0.9282517]
[1767703301084,3.09158087,3234.6,3234.2,0.9282517]
[1767703301413,0.28948155,3234.5,3234.2,0.9282517]
[1767703301615,0.28948155,3234.4,3234.2,0.92172873]
[1767703301914,3.09158087,3234.6,3234.2,0.92172873]
[1767703302116,0.28948155,3234.5,3234.2,0.92172873]
[1767703302316,0.28948155,3234.4,3234.2,0.92172873]
[1767703302515,0.14034143,3234.5,3233.9,0.002]
[1767703302720,0.32041085,3234.4,3233.9,0.002]
[1767703303011,3.09185913,3234.3,3233.9,0.002]
[1767703303315,3.09185913,3234.3,3233.9,0.9302517]
[1767703304017,3.09185913,3234.3,3233.9,0.002]
[1767703305717,3.09185913,3234.3,3233.9,0.9302517]
[1767703308115,3.09185913,3234.3,3234.2,0.002]
[1767703308818,3.1227374,3234.4,3234.2,0.002]
[1767703312521,3.75821362,3234.4,3234.2,0.002]
[1767703321642,6.85002463,3234.4,3234.2,0.002]
[1767703321839,0.28949954,3234.3,3233.9,0.002]
[1767703322014,1.13042593,3234.2,3233.6,0.9847428]
[1767703322342,2.10842168,3234.2,3233.6,0.9847428]
[1767703322755,0.28946021,3234.1,3233.6,0.9847428]
[1767703323044,0.28946021,3234.0,3233.6,0.9847428]
[1767703323253,3.09233718,3233.8,3233.6,0.9847428]
[1767703324426,3.09214594,3234.0,3233.6,0.9847428]
[1767703324628,3.12302134,3234.1,3233.6,0.9847428]
[1767703324941,0.28915944,3234.0,3233.6,0.9847428]
[1767703325140,3.12302134,3234.1,3233.6,0.9847428]
[1767703325343,0.28909128,3234.0,3233.6,0.9847428]
[1767703325519,6.1841899,3234.1,3233.6,0.9847428]
[1767703325718,0.32001732,3234.0,3233.6,0.9847428]
[1767703325923,0.03092639,3234.0,3233.6,0.9847428]
[1767703326759,3.09224156,3233.9,3233.6,0.9847428]
[1767703327260,6.18448312,3233.9,3233.6,0.9847428]
[1767703327859,3.09224156,3233.9,3233.6,0.9847428]
[1767703333559,3.12310487,3234.0,3233.6,0.9847428]
[1767703334062,6.21528335,3234.0,3233.6,0.9847428]
[1767703338061,3.12310487,3234.0,3233.6,0.9847428]
[1767703339364,6.21528335,3234.0,3233.6,0.9847428]
[1767703341884,6.91781169,3234.0,3233.6,0.9847428]
[1767703342047,6.8868853,3234.0,3233.6,0.9847428]
[1767703342372,0.03092639,3233.9,3233.6,0.9847428]
[1767703343570,3.09233718,3233.8,3233.6,0.9847428]
[1767703343776,0.001,3233.7,3233.6,0.9847428]
[1767703348191,0.001,3233.7,3233.6,0.98165209]
[1767703352065,0.001,3233.7,3233.3,0.002]
[1767703352066,0.001,3233.7,3233.4,0.98030506]
[1767703361309,3.90208894,3234.1,3233.6,0.98030506]
[1767703361500,0.32024879,3234.0,3233.6,0.98030506]
[1767703361678,0.03092639,3234.0,3233.6,0.98030506]
[1767703362811,3.12308557,3234.0,3233.6,0.98030506]
[1767703364218,6.21524475,3234.0,3233.6,0.98030506]
[1767703364438,0.28931672,3233.9,3233.4,0.98030506]
[1767703364715,3.12308557,3234.0,3233.4,0.98030506]
[1767703365080,0.28931635,3233.9,3233.4,0.98030506]
[1767703365303,0.03092639,3233.8,3233.4,0.98030506]
[1767703365510,0.03092639,3233.9,3233.4,0.98030506]
[1767703366489,3.12320037,3233.9,3233.4,0.98030506]
[1767703367321,0.001,3233.6,3233.4,0.98030506]
[1767703368330,0.001,3233.6,3233.3,0.002]
[1767703368930,0.001,3233.6,3233.3,0.98230506]
[1767703371008,0.001,3233.6,3233.3,0.002]
[1767703372024,0.001,3233.6,3233.4,0.98030506]
[1767703375422,0.001,3233.6,3233.3,0.002]
[1767703382056,0.001,3233.6,3233.3,0.90949432]
[1767703382360,0.81,3233.9,3233.3,0.90949432]
[1767703383653,3.90224581,3233.9,3233.3,0.90949432]
[1767703384375,4.04667898,3233.9,3233.3,0.90949432]
[1767703384579,3.90224581,3233.9,3233.3,0.90949432]
[1767703385948,6.18371826,3234.3,3233.3,0.90949432]
[1767703386171,0.81,3234.1,3233.3,0.90949432]
[1767703386370,0.28923291,3234.0,3233.3,0.90949432]
[1767703386987,0.28923291,3234.0,3233.5,0.90749432]
[1767703387178,3.09185913,3234.3,3233.5,0.90749432]
[1767703387382,1.09924932,3234.2,3233.5,0.90749432]
[1767703387695,0.28924932,3234.1,3233.5,0.90749432]
[1767703389385,3.38132498,3234.1,3233.5,0.90749432]
[1767703389681,3.09207566,3234.1,3233.5,0.90749432]
[1767703390179,3.90196827,3234.2,3233.5,0.90749432]
[1767703390357,0.28933022,3234.1,3233.5,0.90749432]
[1767703390651,3.90196827,3234.2,3233.5,0.90749432]
[1767703390865,0.28933014,3234.1,3233.5,0.90749432]
[1767703391069,3.90196827,3234.2,3233.5,0.90749432]
[1767703391296,0.001,3233.7,3233.5,0.90749432]
[1767703391498,3.90196827,3234.2,3233.7,0.90749432]
[1767703391698,0.28932645,3234.1,3233.7,0.90749432]
[1767703391878,3.90196827,3234.2,3233.7,0.90749432]
[1767703392078,0.28932623,3234.1,3233.7,0.90749432]
[1767703392281,3.90196827,3234.2,3233.7,0.90749432]
[1767703392481,0.28932421,3234.1,3233.7,0.90749432]
[1767703392677,3.90196827,3234.2,3233.7,0.90749432]
[1767703392882,0.28932418,3234.1,3233.7,0.90602757]
[1767703393184,3.90196827,3234.2,3233.7,0.90602757]
[1767703393383,0.28932281,3234.1,3233.7,0.90602757]
[1767703393683,3.90196827,3234.2,3233.7,0.90602757]
[1767703393884,0.28932272,3234.1,3233.7,0.90602757]
[1767703394201,3.90196827,3234.2,3233.7,0.90602757]
[1767703394400,0.28932094,3234.1,3233.7,0.90602757]
[1767703394596,3.90196827,3234.2,3233.7,0.90602757]
[1767703394792,0.28932094,3234.1,3233.7,0.90602757]
[1767703394992,3.90196827,3234.2,3233.7,0.90602757]
[1767703395288,0.28932097,3234.1,3233.7,0.90602757]
[1767703395496,0.03092639,3234.1,3233.7,0.90602757]
[1767703395873,3.90196827,3234.2,3233.7,0.90602757]
[1767703396083,0.28931304,3234.1,3233.7,0.90602757]
[1767703396384,0.03092639,3234.1,3233.7,0.90602757]
[1767703397605,3.09214594,3234.0,3233.7,0.90602757]
[1767703398106,3.12302311,3234.1,3233.7,0.90602757]
[1767703402701,0.03092639,3234.1,3233.7,0.90602757]
[1767703402911,3.90199609,3234.2,3233.7,0.90602757]
[1767703403083,0.28928081,3234.1,3233.7,0.90602757]
[1767703403284,3.90199609,3234.2,3233.7,0.90602757]
[1767703403493,0.28927874,3234.1,3233.7,0.90602757]
[1767703403693,3.90199609,3234.2,3233.7,0.90602757]
[1767703403894,0.28927877,3234.1,3233.7,0.90602757]
[1767703404108,0.001,3233.8,3233.7,0.90602757]
[1767703404303,3.90199609,3234.2,3233.7,0.90602757]
[1767703404612,0.28927841,3234.1,3233.7,0.90602757]
[1767703404809,4.6159754,3234.2,3233.7,0.90602757]
[1767703405012,0.2892784,3234.1,3233.7,0.90602757]
[1767703405313,3.90199609,3234.2,3233.7,0.90602757]
[1767703405515,0.28928676,3234.1,3233.7,0.90602757]
[1767703405700,3.90199609,3234.2,3233.7,0.90602757]
[1767703405906,0.28928673,3234.1,3233.7,0.90602757]
[1767703406203,0.03092639,3234.1,3233.7,0.90602757]
[1767703407213,3.12299688,3234.1,3233.7,0.90602757]
[1767703409316,0.03092639,3234.1,3233.7,0.90602757]
[1767703409615,3.12301159,3234.1,3233.7,0.90602757]
[1767703411217,0.28943356,3234.0,3233.7,0.90602757]
[1767703411413,3.12301159,3234.1,3233.7,0.90602757]
[1767703411599,0.28943684,3234.0,3233.7,0.90602757]
[1767703411911,3.12301159,3234.1,3233.7,0.90602757]
[1767703412118,0.28943684,3234.0,3233.7,0.90602757]
[1767703412316,3.12301159,3234.1,3233.7,0.90602757]
[1767703412521,0.28947814,3234.0,3233.7,0.90602757]
[1767703412692,3.12301159,3234.1,3233.7,0.90602757]
[1767703412892,0.28947757,3234.0,3233.7,0.90602757]
[1767703413113,0.03092639,3234.1,3233.7,0.90602757]
[1767703413313,0.28948383,3234.0,3233.7,0.90602757]
[1767703413518,3.90199213,3234.2,3233.7,0.90602757]
[1767703413735,0.43538532,3234.1,3233.3,5.56292976]
[1767703414030,0.2894854,3234.0,3233.5,0.97542137]
[1767703414203,3.90199213,3234.2,3233.5,0.97542137]
[1767703414502,0.28949941,3234.1,3233.5,0.97542137]
[1767703414704,0.28949941,3234.0,3233.5,0.97542137]
[1767703414903,0.03092639,3234.1,3233.5,0.97542137]
[1767703415225,0.28949944,3234.0,3233.5,0.97542137]
[1767703415528,0.03092639,3234.1,3233.6,0.97542137]
[1767703415827,0.2895229,3234.0,3233.6,0.97542137]
[1767703416040,0.001,3233.8,3233.6,0.97542137]
[1767703420113,0.14689992,3233.8,3233.5,0.61194227]
[1767703420314,0.14689992,3233.8,3233.3,0.002]
[1767703420512,0.001,3233.8,3233.4,0.97542137]
[1767703429245,0.001,3233.8,3233.7,0.002]
[1767703436756,3.09157237,3234.6,3233.8,0.97542137]
[1767703436956,0.28955592,3234.5,3233.8,0.97542137]
[1767703437259,0.28955592,3234.4,3233.9,1.53171435]
[1767703437458,0.28955592,3234.3,3233.9,1.53171435]
[1767703437772,7.13912107,3234.6,3233.9,0.97542137]
[1767703438076,0.001,3234.8,3233.9,0.97542137]
[1767703438077,0.28942618,3234.5,3233.9,0.97542137]
[1767703438243,3.90149695,3234.7,3233.9,0.97542137]
[1767703438443,0.28927599,3234.6,3233.9,0.97542137]
[1767703438758,3.90149695,3234.7,3233.9,0.97542137]
[1767703438949,0.28927247,3234.6,3233.9,0.97542137]
[1767703439150,3.90149695,3234.7,3233.9,0.97542137]
[1767703439360,0.28918618,3234.6,3233.9,0.97542137]
[1767703439573,0.14589992,3234.6,3233.9,0.55938541]
[1767703439877,0.14589992,3234.4,3233.7,0.002]
[1767703440174,0.14389992,3234.2,3233.4,0.002]
[1767703440348,0.14389992,3234.2,3233.4,0.97742137]
[1767703440865,3.09205033,3234.1,3233.4,0.97742137]
[1767703441072,3.23595025,3234.1,3233.4,0.97742137]
[1767703441364,0.14389992,3234.1,3233.4,0.97742137]
[1767703441569,3.23683069,3234.3,3233.4,0.97742137]
[1767703441747,0.001,3234.3,3233.4,0.97742137]
[1767703441945,0.001,3234.3,3233.5,0.93491529]
[1767703442145,0.001,3234.3,3233.7,0.93491529]
[1767703452979,0.001,3234.0,3233.7,0.93491529]
[1767703453494,0.14489992,3234.3,3234.0,0.92662768]
[1767703453495,0.001,3234.3,3234.0,0.92662768]
[1767703456292,0.14389992,3234.2,3233.4,4.58750839]
[1767703456494,0.14389992,3234.2,3233.4,5.51413607]
[1767703456701,0.14389992,3234.2,3233.5,0.55161361]
[1767703459905,0.14389992,3234.2,3233.5,4.58550839]
[1767703460278,0.001,3234.3,3233.6,0.92662768]
[1767703464802,0.001,3234.3,3233.9,0.92862768]
[1767703465105,0.001,3234.0,3233.9,0.92862768]
[1767703467718,0.001,3234.3,3234.0,0.92662768]
[1767703467917,3.09243735,3234.8,3234.2,0.92662768]
[1767703468221,3.09243735,3234.8,3234.2,0.92462769]
[1767703468222,0.28933997,3234.7,3234.2,0.92462769]
[1767703468518,0.28933997,3234.6,3234.2,0.92462769]
[1767703468699,3.09243735,3234.8,3234.2,0.92462769]
[1767703468895,0.28932909,3234.7,3234.2,0.92462769]
[1767703469124,0.28932909,3234.6,3234.2,0.92462769]
[1767703469418,3.09243735,3234.8,3234.2,0.92462769]
[1767703469634,0.28932348,3234.7,3234.2,0.92462769]
[1767703469817,0.28932348,3234.6,3234.2,0.92462769]
[1767703469996,0.001,3234.8,3234.2,0.92462769]
[1767703470292,0.28932338,3234.7,3234.2,0.92462769]
[1767703470494,0.28932338,3234.6,3234.2,0.92462769]
[1767703470689,3.09241723,3234.8,3234.2,0.92462769]
[1767703470890,0.28929272,3234.7,3234.2,0.92462769]
[1767703471090,3.09241723,3234.8,3234.2,0.92462769]
[1767703471320,0.28926576,3234.7,3234.2,0.92462769]
[1767703471614,3.09241723,3234.8,3234.2,0.92462769]
[1767703471792,0.28926579,3234.7,3234.2,0.92462769]
[1767703471991,0.001,3234.8,3234.2,0.92462769]
[1767703472192,0.28926579,3234.7,3234.2,0.92462769]
[1767703472415,0.001,3234.8,3234.2,0.92462769]
[1767703472625,0.2892394,3234.7,3234.2,0.92462769]
[1767703472804,0.001,3234.8,3234.2,0.9226277]
[1767703473008,0.28923965,3234.7,3234.2,0.9226277]
[1767703473198,0.1488999,3234.8,3234.2,0.9226277]
[1767703473518,3.23948491,3234.6,3233.9,0.002]
[1767703473707,3.09158501,3234.6,3234.0,0.97255618]
[1767703474822,3.09152483,3234.7,3234.0,0.97255618]
[1767703476504,6.18382779,3234.8,3234.0,0.97255618]
[1767703476714,0.2891643,3234.7,3234.0,0.97255618]
[1767703477012,6.18382779,3234.8,3234.0,0.97255618]
[1767703477315,0.2891643,3234.7,3234.0,0.97255618]
[1767703477614,6.18382779,3234.8,3234.0,0.97255618]
[1767703477809,3.09157237,3234.6,3234.0,0.97255618]
[1767703478012,3.23947227,3234.6,3234.0,0.97255618]
[1767703478216,6.33104464,3234.6,3234.0,0.97255618]
[1767703478621,3.23947227,3234.6,3234.0,0.97255618]
[1767703479002,0.001,3234.4,3234.0,0.97255618]
[1767703486546,0.001,3234.4,3234.0,0.97055619]
[1767703492813,0.81,3235.0,3233.9,0.002]
[1767703492814,3.09051616,3235.8,3234.8,0.99024631]
[1767703492987,0.61691864,3235.7,3234.8,0.99024631]
[1767703493166,0.15089989,3235.8,3234.8,0.98824632]
[1767703493167,0.15289988,3235.5,3234.8,0.98824632]
[1767703493372,0.81,3235.9,3234.2,4.58486743]
[1767703493373,0.28914691,3235.4,3234.3,0.99024631]
[1767703493566,0.15289988,3235.7,3234.3,0.99024631]
[1767703493891,0.15289988,3235.4,3234.3,0.99024631]
[1767703495781,0.15289988,3235.3,3234.3,0.99024631]
[1767703495999,0.15289988,3235.3,3234.4,1.55084964]
[1767703496202,3.09081802,3235.4,3234.5,0.99024631]
[1767703496582,3.09075497,3235.5,3234.5,0.99024631]
[1767703496776,3.09075497,3235.5,3234.6,0.99024631]
[1767703500707,4.82681439,3235.9,3234.7,0.99024631]
[1767703500908,3.90034946,3235.9,3234.9,0.99024631]
[1767703501999,0.92643632,3236.1,3234.9,0.99024631]
[1767703502204,3.09004387,3236.2,3235.1,0.97426065]
[1767703503106,3.24289168,3236.3,3235.1,0.97426065]
[1767703503291,3.0899918,3236.3,3235.3,0.97426065]
[1767703503496,6.1799836,3236.3,3235.3,0.97426065]
[1767703504304,6.33288348,3236.3,3235.3,0.97426065]
[1767703504906,3.24289168,3236.3,3235.3,0.97426065]
[1767703506313,3.0899918,3236.3,3235.3,0.97426065]
[1767703506498,3.0899918,3236.3,3235.5,0.97426065]
[1767703507301,0.81,3236.4,3235.5,0.97426065]
[1767703508321,3.89986413,3236.4,3235.5,0.97426065]
[1767703512140,6.98972826,3236.4,3235.5,0.97426065]
[1767703515245,7.14262814,3236.4,3235.5,0.97426065]
[1767703516935,0.002,3236.1,3235.5,0.97426065]
[1767703520557,0.15489988,3236.1,3234.8,0.94409145]
[1767703520754,0.15489988,3236.1,3235.0,0.94409145]
[1767703521457,0.15289988,3235.9,3235.0,0.94409145]
[1767703523847,6.18085172,3235.8,3235.0,0.94409145]
[1767703525151,6.3337516,3235.8,3235.0,0.94409145]
[1767703525454,0.15289988,3235.7,3234.6,0.94409145]
[1767703525633,0.15289988,3235.7,3234.7,1.1195006]
[1767703526365,3.24351676,3235.6,3234.7,1.1195006]
[1767703528374,6.33413364,3235.6,3234.7,1.1195006]
[1767703528962,6.33413364,3235.6,3234.8,0.94409145]
[1767703529150,0.15289988,3235.5,3234.8,0.94409145]
[1767703531869,3.09080793,3235.4,3234.8,0.94409145]
[1767703532969,3.24364572,3235.5,3234.8,0.94409145]
[1767703533157,3.09074584,3235.5,3234.8,0.94409145]
[1767703533671,0.001,3235.6,3235.0,0.99436114]
[1767703533998,0.002,3236.1,3235.3,0.99436114]
[1767703534647,0.15289988,3236.0,3235.3,0.99436114]
[1767703534848,0.15289988,3236.0,3235.2,4.58192002]
[1767703535062,0.15289988,3236.0,3235.3,0.458192]
[1767703537690,0.002,3236.1,3235.4,0.99436114]
[1767703542290,0.002,3236.1,3235.4,1.02526921]
[1767703542792,0.15489988,3236.1,3235.2,0.99436114]
[1767703542994,1.60325683,3236.0,3235.2,0.99436114]
[1767703543197,0.81,3236.0,3235.6,0.99536114]
[1767703543907,0.002,3235.8,3235.6,0.99536114]
[1767703544209,0.002,3235.8,3235.6,0.001]
[1767703544507,0.03290822,3235.8,3235.6,0.001]
[1767703544818,0.1858081,3235.8,3235.6,0.001]
[1767703545402,0.03290822,3235.8,3235.6,0.001]
[1767703548585,3.27625844,3235.8,3235.6,0.001]
[1767703548790,3.99391035,3235.8,3235.6,0.001]
[1767703548992,3.84101047,3235.8,3235.6,0.001]
[1767703551013,0.15289988,3235.7,3235.6,0.001]
[1767703551308,0.15289988,3235.7,3234.8,0.99436114]
[1767703551505,0.15189988,3235.5,3234.6,5.60410058]
[1767703551711,0.15189988,3235.5,3234.7,0.84428357]
[1767703552093,0.15189988,3235.4,3234.7,0.84428357]
[1767703554082,3.12157179,3235.6,3234.8,0.99436114]
[1767703555114,0.03090822,3235.6,3234.8,0.99436114]
[1767703555317,0.03090822,3235.6,3235.0,0.99436114]
[1767703555498,3.12155535,3235.6,3235.0,0.99436114]
[1767703555886,3.12155535,3235.6,3235.0,0.99636114]
[1767703557895,0.03090822,3235.6,3235.0,0.99636114]
[1767703558926,0.03090822,3235.7,3235.0,0.99636114]
[1767703563195,3.12144833,3235.7,3235.0,0.99636114]
[1767703563607,0.15189988,3235.6,3235.0,0.002]
[1767703564749,0.15189988,3235.4,3235.0,0.002]
[1767703568443,3.12156327,3235.6,3235.1,0.99372815]
[1767703569413,3.74297427,3235.6,3235.1,0.99372815]
[1767703572956,0.15189988,3235.5,3235.0,0.002]
[1767703574023,3.2426197,3235.5,3235.0,0.002]
[1767703574427,3.09071982,3235.5,3235.0,0.99572815]
[1767703576930,0.03090822,3235.6,3235.0,0.99572815]
[1767703576931,3.12156197,3235.6,3235.0,0.99572815]
[1767703577555,6.80271586,3235.6,3235.0,0.99572815]
[1767703577860,3.71206211,3235.6,3235.0,0.99572815]
[1767703578950,0.15189988,3235.5,3235.0,0.002]
[1767703579231,0.1828081,3235.5,3235.0,0.002]
[1767703579858,0.15189988,3235.3,3235.0,0.002]
[1767703580561,0.47926148,3235.3,3235.0,0.002]
[1767703581867,0.3273616,3235.3,3235.0,0.002]
[1767703584270,6.50918878,3235.3,3234.9,0.90196149]
[1767703584477,6.18182718,3235.3,3234.6,0.90396149]
[1767703584641,7.17170876,3235.3,3234.6,0.90396149]
[1767703584956,1.24825023,3235.2,3234.6,0.90396149]
[1767703585133,0.28927687,3235.1,3234.6,0.90396149]
[1767703585333,0.95897336,3235.2,3234.6,0.90396149]
[1767703585563,1.00314725,3235.1,3234.6,0.90396149]
[1767703585737,0.71408005,3235.1,3234.6,0.90396149]
[1767703589485,3.09128566,3234.9,3234.6,0.90396149]
[1767703589659,3.12214411,3235.0,3234.6,0.90396149]
[1767703590560,0.95897336,3235.4,3234.6,0.90396149]
[1767703590758,0.46571767,3235.3,3234.6,0.90396149]
[1767703590985,0.28882033,3235.2,3234.6,0.90396149]
[1767703591283,0.31972855,3235.2,3234.6,0.90396149]
[1767703591457,0.03090822,3235.2,3234.6,0.90396149]
[1767703592685,3.09109455,3235.1,3234.9,0.001]
[1767703592871,3.73009301,3235.1,3234.9,0.001]
[1767703594896,6.82118756,3235.1,3234.9,0.001]
[1767703596861,3.73009301,3235.1,3234.9,0.001]
[1767703597265,6.82118756,3235.1,3234.9,0.001]
[1767703597992,0.03090822,3235.0,3234.9,0.001]
[1767703598394,3.73009301,3235.1,3234.9,0.001]
[1767703599896,6.82118756,3235.1,3234.9,0.001]
[1767703600687,0.03090822,3235.0,3234.9,0.001]
[1767703601523,3.12209832,3235.0,3234.9,0.001]
[1767703601713,3.0911901,3235.0,3234.9,0.001]
[1767703603521,3.77331202,3235.0,3234.9,0.001]
[1767703604525,3.80422024,3235.0,3234.9,0.001]
[1767703609199,3.12209832,3235.0,3234.9,0.001]
[1767703609397,3.0911901,3235.0,3234.9,0.001]
[1767703610947,3.1219858,3235.2,3234.9,0.001]
[1767703610948,3.09109455,3235.1,3234.9,0.001]
[1767703612826,3.09106462,3235.2,3234.9,0.001]
[1767703613159,0.28913116,3235.1,3234.9,0.001]
[1767703613360,6.18212924,3235.2,3234.9,0.001]
[1767703613544,0.28923608,3235.1,3234.9,0.001]
[1767703613846,6.91392923,3235.2,3234.9,0.001]
[1767703614029,0.28923608,3235.1,3234.9,0.001]
[1767703614230,0.28949404,3235.0,3234.9,0.001]
[1767703615550,3.38068414,3235.0,3234.9,0.001]
[1767703615954,3.41159236,3235.0,3234.9,0.001]
[1767703620741,6.50278246,3235.0,3234.6,0.90396149]
[1767703621059,0.28949404,3234.9,3234.6,0.90396149]
[1767703622467,3.09138122,3234.8,3234.6,0.90396149]
[1767703626993,3.12223836,3234.9,3234.6,0.90396149]
[1767703627154,3.12223836,3234.9,3234.6,0.002]
[1767703627507,4.0701705,3234.9,3234.6,0.002]
[1767703627652,0.94793214,3234.8,3234.6,0.002]
[1767703629983,0.94793214,3234.7,3234.6,0.002]
[1767703632589,4.03940893,3234.7,3234.6,0.002]
[1767703632794,3.12233208,3234.8,3234.6,0.002]
[1767703636917,0.03090822,3234.8,3234.6,0.002]
[1767703637616,3.12233262,3234.8,3234.6,0.002]
[1767703640522,0.99523166,3234.7,3234.6,0.002]
[1767703641421,3.12233262,3234.8,3234.6,0.002]
[1767703644327,3.12233262,3234.8,3234.6,0.91137735]
[1767703645132,0.03090822,3234.8,3234.6,0.91137735]
[1767703646126,3.12233435,3234.8,3234.6,0.91137735]
[1767703649324,3.12233435,3234.8,3234.6,0.002]
[1767703653021,0.03090822,3234.8,3234.6,0.96649953]
[1767703653214,0.03090822,3235.1,3234.6,0.96649953]
[1767703653419,0.03090822,3235.1,3234.9,0.002]
[1767703653420,0.28927357,3235.0,3234.9,0.002]
[1767703653821,3.38046367,3235.0,3234.9,0.002]
[1767703654206,3.41137189,3235.0,3234.9,0.002]
[1767703663043,3.09052137,3235.7,3234.9,4.58391649]
[1767703663218,3.09052137,3235.7,3234.6,0.002]
[1767703663219,6.20886216,3235.7,3235.1,0.96449953]
[1767703664447,3.11834079,3235.7,3235.1,0.96449953]
[1767703664826,6.20886216,3235.7,3235.1,0.96449953]
[1767703665344,0.02781942,3235.4,3234.7,0.96449953]
[1767703665550,0.81,3235.3,3234.7,0.96449953]
[1767703667937,0.81,3235.3,3234.6,0.002]
[1767703668250,1.72979196,3235.3,3234.6,0.48184995]
[1767703668449,1.72979196,3235.3,3234.6,0.002]
[1767703668762,1.72979196,3235.3,3234.6,0.96649953]
[1767703672260,0.91979196,3235.2,3234.6,0.002]
[1767703673240,0.91979196,3235.2,3234.6,4.58591649]
[1767703673657,0.81,3235.3,3234.7,0.96449953]
[1767703673854,0.81,3235.3,3234.9,0.96449953]
[1767703677870,0.81,3235.3,3234.9,0.96649953]
[1767703678385,3.09246878,3235.8,3235.1,0.96449953]
[1767703678585,0.81,3235.6,3235.1,0.96449953]
[1767703680285,0.002,3235.8,3235.4,0.96449953]
[1767703688315,0.002,3235.8,3235.0,4.58391649]
[1767703688615,0.92139146,3235.8,3235.1,0.53959165]
[1767703689188,4.01186011,3235.8,3235.1,0.53959165]
[1767703689384,4.01186011,3235.8,3235.0,5.5640495]
[1767703689609,0.92139146,3235.8,3235.0,5.5640495]
[1767703690017,0.92139146,3235.8,3235.1,0.98013301]
[1767703691913,0.002,3235.8,3235.1,0.98013301]
[1767703692119,0.002,3235.8,3235.2,5.55822147]
[1767703692298,0.002,3235.8,3235.3,0.55582215]
[1767703693790,0.002,3236.1,3235.5,5.55822147]
[1767703694023,0.002,3236.1,3235.6,0.97430498]
[1767703695813,0.002,3236.1,3235.5,4.58391649]
[1767703695814,0.99571384,3236.1,3235.5,4.58391649]
[1767703696123,0.99571384,3236.1,3235.3,0.55582215]
[1767703696330,0.99571384,3236.1,3235.3,4.58391649]
[1767703696897,0.99571384,3236.1,3235.1,5.39391649]
[1767703699602,0.99571384,3236.1,3235.1,6.36822147]
[1767703700706,0.99571384,3236.1,3235.2,0.97430498]
[1767703701030,0.99571384,3236.1,3235.3,1.61112713]
[1767703701403,0.99571384,3236.1,3235.4,0.001]
[1767703701606,0.002,3235.8,3235.4,0.001]
[1767703702026,0.002,3235.8,3235.4,0.97530498]
[1767703708830,0.99571384,3235.8,3235.4,0.001]
[1767703710911,0.99371384,3235.7,3235.4,0.001]
[1767703714250,0.96285965,3235.6,3235.4,0.001]
[1767703715121,0.96285965,3235.5,3235.4,0.001]
[1767703716634,0.96285965,3235.5,3234.9,0.002]
[1767703717226,0.96285965,3235.5,3234.6,0.002]
[1767703717227,0.96285965,3235.4,3234.6,0.002]
[1767703717432,0.96285965,3235.2,3234.6,0.002]
[1767703722417,0.96285965,3235.4,3234.6,0.9856391]
[1767703725242,4.05366997,3235.4,3234.6,0.9856391]
[1767703725858,0.96285965,3235.4,3234.6,0.9856391]
[1767703726056,0.96285965,3235.4,3234.9,0.002]
[1767703726245,1.449219,3235.4,3234.9,0.002]
[1767703727823,4.54003141,3235.4,3234.9,0.002]
[1767703729249,0.96285965,3235.3,3234.9,0.002]
[1767703730753,4.05377749,3235.3,3234.9,0.002]
[1767703731053,0.96285965,3235.2,3234.6,0.002]
[1767703731219,0.96285965,3235.1,3234.6,0.002]
[1767703733862,0.96285965,3234.9,3234.6,0.002]
[1767703736771,4.05417937,3234.9,3234.6,0.002]
[1767703737546,0.96285965,3234.8,3234.6,0.002]
[1767703743072,3.09129727,3234.9,3234.6,0.002]
[1767703743369,3.99226529,3234.9,3234.6,0.002]
[1767703746240,4.7006043,3234.9,3234.6,0.002]
[1767703749775,1.60930703,3234.9,3234.6,0.002]
[1767703750179,0.90096802,3234.9,3234.6,0.002]
[1767703754777,3.99227344,3234.9,3234.6,0.002]
[1767703762689,7.08357886,3234.9,3234.6,0.002]
[1767703762892,3.99227344,3234.9,3234.6,0.002]
[1767703765598,3.09130542,3234.9,3234.6,0.002]
[1767703765800,4.70061774,3234.9,3234.6,0.002]
[1767703768301,1.60931232,3234.9,3234.6,0.002]
[1767703768593,0.90096802,3234.9,3234.6,0.002]
[1767703769195,0.90096802,3234.9,3234.5,0.002]
[1767703769666,0.90096802,3234.8,3234.5,0.002]
[1767703770688,3.09130907,3234.9,3234.5,0.002]
[1767703772093,0.9232637,3234.8,3234.5,0.002]
[1767703772396,0.9232637,3234.8,3234.3,0.002]
[1767703773507,0.9073889,3234.8,3234.3,0.002]
[1767703774502,3.09121606,3235.0,3234.5,0.002]
[1767703774684,0.59862743,3234.9,3234.5,0.002]
[1767703774886,0.30912161,3234.9,3234.5,0.002]
[1767703777399,0.9232637,3235.0,3234.5,0.002]
[1767703777580,0.28950542,3234.9,3234.5,0.002]
[1767703777785,0.9232637,3235.0,3234.5,0.002]
[1767703778097,0.28950545,3234.9,3234.5,0.002]
[1767703778282,0.9232637,3235.0,3234.5,0.002]
[1767703778606,0.28950505,3234.9,3234.5,0.002]
[1767703778809,0.9232637,3235.0,3234.5,0.002]
[1767703778996,0.28950489,3234.9,3234.5,0.002]
[1767703779307,0.9232637,3235.0,3234.5,0.002]
[1767703779878,4.01432161,3235.2,3234.5,0.002]
[1767703780077,0.69370329,3235.1,3234.6,0.95156228]
[1767703780379,0.28948919,3235.0,3234.6,0.95156228]
[1767703780610,0.4042141,3235.1,3234.6,0.95156228]
[1767703780817,0.28945432,3235.0,3234.6,0.95156228]
[1767703780983,0.28945977,3234.9,3234.6,0.95156228]
[1767703781191,3.49537961,3235.1,3234.6,0.95156228]
[1767703781381,0.73132228,3235.0,3234.6,0.95156228]
[1767703781711,0.28945795,3234.9,3234.6,0.95156228]
[1767703781879,0.44186433,3235.0,3234.6,0.95156228]
[1767703782081,0.28946179,3234.9,3234.6,0.95156228]
[1767703782281,0.44186433,3235.0,3234.6,0.95156228]
[1767703782484,0.28946176,3234.9,3234.6,0.95156228]
[1767703782689,0.44186433,3235.0,3234.6,0.95156228]
[1767703782889,0.28946167,3234.9,3234.6,0.95156228]
[1767703783079,0.44186433,3235.0,3234.6,0.95156228]
[1767703783303,0.2894617,3234.9,3234.6,0.95156228]
[1767703783504,3.49537961,3235.1,3234.6,0.95156228]
[1767703783704,0.73132589,3235.0,3234.6,0.95156228]